Cogmind - Beta 15 @@@ ROGUE MODE // 2025.06.06 @ 23:08:33 Player: Demo Result: Destroyed by AG-74340 with Assembled Focal Cannon Performance ------------- Evolutions (3) 1500 Regions Visited (14) 2800 Robots Destroyed (119) 595 Value Destroyed (4143) 4143 Prototype IDs (47) 940 Alien Tech Used (0) 0 Bonus (3108) 3108 TOTAL SCORE: 13086 Bonus ------- High Alert Combat Kills 561 Follower Combat Kills 1056 Entered Garrisons 200 Aligned with FarCom 300 Met Imprinter 300 Destroyed Z-Imprinter 1000 Acquired ECA 300 Friendly Fire -609 Cogmind --------- Core Integrity 0/700 Matter 186/300 Energy 100/100 System Corruption 12% Temperature Cool (12) Movement Walking (130) Location -7/Deep Caves Parts ------- > --- POWER (1) -------- Zionite Light DM Reactor > --- PROPULSION (4) --- Improved Carbon-fiber Leg Improved Titanium Leg Light Armored Exoskeleton > --- UTILITY (5) ------ High-capacity Storage Unit Melee Analysis Suite Improved Melee Analysis Suite Zionite Weapon Casing > --- WEAPON (3) ------- RU-N14's Throwing Claymores RU-N14's Throwing Claymores > --- INVENTORY (20) --- Zionite Light DM Reactor Carbon-fiber Leg Enhanced Flexi-carbon Leg Enhanced Flexi-carbon Leg Zionite Biocell (600) High-capacity Matter Pod (200) Microactuators Improved Reaction Control System Experimental Reaction Control System Zionite Weapon Casing Trap Extractor (4/4 Dirty Bomb) Heavy Rocket Launcher Plasma Cutter Scythe Peak State ------------ > --- POWER ------------ Zionite Light DM Reactor > --- PROPULSION ------- Improved Carbon-fiber Leg Improved Titanium Leg Light Armored Exoskeleton > --- UTILITY ---------- High-capacity Storage Unit Melee Analysis Suite Improved Melee Analysis Suite Experimental Reaction Control System Improved Medium Armor Plating > --- WEAPON ----------- RU-N14's Throwing Claymores RU-N14's Throwing Claymores RU-N14's Throwing Claymores > --- INVENTORY -------- Zionite Light DM Reactor Carbon-fiber Leg Enhanced Flexi-carbon Leg Enhanced Flexi-carbon Leg Zionite Biocell Zionite Biocell High-capacity Matter Pod Microactuators Improved Reaction Control System Zionite Weapon Casing Zionite Weapon Casing Trap Extractor Heavy Rocket Launcher Plasma Cutter RU-N14's Throwing Claymores Scythe [Rating: 74] Favorites ----------- Power Improved Deuterium Engine Engine Improved Deuterium Engine Power Core Nuclear Core Reactor Zionite Light DM Reactor Propulsion Improved Carbon-fiber Leg Treads Light Treads Leg Improved Carbon-fiber Leg Wheel Wheel Hover Unit Zionite Glidesys I Flight Unit Flying Fortress v7 Utility High-capacity Storage Unit Device Structural Scanner Storage High-capacity Storage Unit Processor Melee Analysis Suite Protection Improved Medium Armor Plating Weapon Scythe Energy Gun Thermic Laser Energy Cannon Heavy Ion Cannon Ballistic Gun Assault Rifle Ballistic Cannon Flak Cannon Launcher Heavy Rocket Launcher Special Weapon RU-N14's Throwing Claymores Impact Weapon Heavy Flail Slashing Weapon Scythe Piercing Weapon Spear Build | -11 -10 -10 -10 -9 -8 -8 -8 -7 -7 -7 -7 -7 -7 -7 ------- Run | Yrd Mat Min Exi Min Mat Gar Mat Fac Was Fac Low Low Zio Dee Slots Evolved 6 | . . . . . 4 . . 2 . . . . . . Power . | . . . . . . . . . . . . . . . Propulsion 2 | . . . . . . . . 2 . . . . . . Utility 3 | . . . . . 3 . . . . . . . . . Weapon 1 | . . . . . 1 . . . . . . . . . Parts Attached 160 | 8 7 7 3 3 11 26 8 10 10 25 10 1 7 24 Power 17 | 1 1 1 . 1 2 1 1 . . 6 . . . 3 Engine 10 | 1 1 1 . 1 . . 1 . . 4 . . . 1 Core 5 | . . . . . 2 1 . . . 2 . . . . Reactor 2 | . . . . . . . . . . . . . . 2 Propulsion 34 | 2 4 2 2 . 2 6 1 3 4 5 . . . 3 Treads 6 | . . . . . . 5 1 . . . . . . . Leg 9 | . . . . . . . . . 3 5 . . . 1 Wheel 14 | 2 4 2 2 . . 1 . 3 . . . . . . Hover 2 | . . . . . . . . . . . . . . 2 Flight 3 | . . . . . 2 . . . 1 . . . . . Utility 60 | 3 1 1 1 1 4 13 4 2 3 8 6 1 2 10 Device 23 | 2 . 1 . 1 1 3 1 . 1 2 5 1 . 5 Storage 6 | 1 1 . 1 . . 1 . 1 . . . . . 1 Processor 7 | . . . . . 2 2 . . 1 2 . . . . Hackware . | . . . . . . . . . . . . . . . Protection 24 | . . . . . 1 7 3 1 1 4 1 . 2 4 Artifact . | . . . . . . . . . . . . . . . Weapon 49 | 2 1 3 . 1 3 6 2 5 3 6 4 . 5 8 Energy Gun 17 | 1 1 1 . . 1 4 . 1 2 1 . . 1 4 Energy Cannon 8 | . . 1 . . 2 . . 2 1 2 . . . . Ballistic Gun 2 | 1 . . . . . 1 . . . . . . . . Ballistic Cannon 3 | . . 1 . . . . 1 1 . . . . . . Launcher 2 | . . . . 1 . . . . . . . . . 1 Special Weapon 5 | . . . . . . . . . . . 1 . 1 3 Impact Weapon 1 | . . . . . . 1 . . . . . . . . Slashing Weapon 9 | . . . . . . . . . . 3 3 . 3 . Piercing Weapon 2 | . . . . . . . 1 1 . . . . . . Special Melee Weapon . | . . . . . . . . . . . . . . . Unidentified Prototypes 21 | . 1 . . . 2 . . 1 1 2 . . 1 13 Corrupted Parts 1 | . . . . . . . . . . . . 1 . . System Corruption 1 | . . . . . . . . . . . . 1 . . Parts Lost 38 | . . 3 . . 1 16 1 . 3 6 . . . 8 Power 6 | . . 1 . . . 1 . . . 2 . . . 2 Propulsion 9 | . . 1 . . . 4 . . 1 2 . . . 1 Utility 10 | . . . . . . 6 1 . 1 . . . . 2 Weapon 13 | . . 1 . . 1 5 . . 1 2 . . . 3 Highest Loss Streak 15 | . . 2 . . 1 15 1 . 3 2 . . . 3 To Critical Strikes . | . . . . . . . . . . . . . . . Average Backups 17 | . 11 19 14 12 12 16 17 16 19 17 19 20 19 17 Power . | . . . . . . . . . . . 2 1 1 . Propulsion 2 | . 3 3 4 4 3 2 2 1 . 1 1 1 2 3 Utility 8 | . 3 10 6 5 5 9 8 8 7 8 10 10 8 7 Weapon 4 | . 3 3 2 2 1 3 5 6 10 5 3 4 5 4 Tool/Special . | . . . . . . . . . . . . . . . Unused Backups 57 | . 3 3 6 1 3 9 1 3 4 10 1 . 4 9 Power 3 | . . . . . . 1 . . . . . . . 2 Propulsion 5 | . . . . 1 1 . . . 1 . . . . 2 Utility 32 | . 1 2 5 . 2 7 . 2 2 4 1 . 1 5 Weapon 14 | . 1 1 . . . 1 1 1 1 6 . . 2 . Tool/Special 3 | . 1 . 1 . . . . . . . . . 1 . Average Slot Usage (%) 89 | . 100 98 100 97 96 96 99 95 63 88 84 84 83 85 Engine 6 | . 14 13 14 14 3 . 7 7 6 5 7 7 7 4 Core 1 | . . . . . 5 8 1 . . 1 . . . . Treads 1 | . . . . . . 8 10 3 . . . . . . Leg 12 | . . . . . . . . . 7 22 23 23 23 22 Wheel 7 | . 28 28 28 28 18 9 7 22 4 . . . . . Device 10 | . 14 14 14 11 17 14 16 15 9 8 12 7 7 6 Storage 8 | . 14 14 14 14 9 9 9 7 7 7 7 7 7 7 Processor 9 | . . . . . 14 1 . . 5 14 15 15 15 15 Protection 7 | . . . . . 2 17 18 15 8 6 2 7 7 6 Energy Gun 6 | . 14 13 14 14 8 13 16 10 7 4 . . . . Energy Cannon 1 | . . . . . 3 2 . 4 1 5 . . . . Ballistic Gun 3 | . 14 13 14 13 9 7 4 . . . . . . . Slashing Weapon 6 | . . . . . . . . . . 9 15 15 14 13 Peak Build Rating 74 | 7 12 14 20 20 35 43 43 45 58 53 54 53 58 74 Average Rating 42 | 5 9 11 17 19 31 38 40 41 44 48 52 52 53 58 On Entrance 32 | . 7 12 12 20 20 29 39 42 41 50 51 53 52 55 Naked Turns . | . . . . . . . . . . . . . . . Heaviest Build 83 | 13 49 51 49 50 68 74 76 78 78 69 65 66 72 83 Greatest Support 68 | 32 32 20 20 20 20 40 43 40 60 68 66 66 66 68 Greatest Overweight (x) 7 | . 2 2 2 2 6 7 7 7 1 1 . 1 1 1 Average Overweight (x) 1 | . 1 2 2 2 2 6 6 2 . . . . . . Largest Inventory Capacity 20 | 8 20 20 20 20 20 20 20 20 20 20 20 20 20 20 Average Capacity 19 | 7 16 20 20 20 20 20 20 20 20 20 20 20 20 20 Most Carried 20 | 3 20 20 20 20 20 20 20 20 20 20 20 20 20 20 Average Carried 19 | . 11 19 19 20 19 19 19 19 19 19 19 19 19 18 Final Capacity 20 | 8 20 20 20 20 20 20 20 20 20 20 20 20 20 20 Final Carried 20 | 3 20 20 20 20 20 20 20 20 20 20 20 20 20 14 Class Distribution -------------------- 37% | Gladiator 26% | Mutant 16% | Scavenger-Mutant 12% | Scavenger-Tank 3% | Scavenger-Skirmisher 3% | Skirmisher Dominant Class ---------------- Mutant | -10/Materials Scavenger-Mutant | -10/Mines Scavenger-Mutant | -10/Exiles Scavenger-Mutant | -9/Mines Skirmisher | -8/Materials Scavenger-Tank | -8/Garrison Scavenger-Skirmisher | -8/Materials Scavenger-Tank | -7/Factory Mutant | -7/Waste Mutant | -7/Factory Gladiator | -7/Lower Caves Gladiator | -7/Lower Caves Gladiator | -7/Zion Gladiator | -7/Deep Caves Resources | -11 -10 -10 -10 -9 -8 -8 -8 -7 -7 -7 -7 -7 -7 -7 ----------- Run | Yrd Mat Min Exi Min Mat Gar Mat Fac Was Fac Low Low Zio Dee Matter Collected 3897 | 307 216 606 . 48 128 712 155 261 259 549 147 . 170 339 Remotely . | . . . . . . . . . . . . . . . Salvage Created 4220 | 165 310 445 . 49 115 552 163 283 . 1672 193 52 . 221 Parts 241 | 10 27 28 . 7 3 27 12 14 . 77 13 3 . 20 Haulers Intercepted 3 | . 1 . . . . . . . . 2 . . . . Recyclers Shooed 5 | . 2 2 . . . . . . . 1 . . . . Parts Field Recycled . | . . . . . . . . . . . . . . . Retrieved Matter . | . . . . . . . . . . . . . . . Parts Self-Destructed 16 | . . . . . . . . . . . 13 3 . . Prevented 1 | . . . . . . . . . . . . 1 . . Kills | -11 -10 -10 -10 -9 -8 -8 -8 -7 -7 -7 -7 -7 -7 -7 ------- Run | Yrd Mat Min Exi Min Mat Gar Mat Fac Was Fac Low Low Zio Dee Combat Hostiles Destroyed 73 | . 3 5 . 4 3 17 5 3 . 24 4 1 . 4 Melee 22 | . . . . . . . . . . 13 4 1 . 4 Guns 25 | . 3 4 . 1 3 11 2 1 . . . . . . Cannons 18 | . . 1 . . . 2 3 2 . 10 . . . . AOE 7 | . . . . 3 . 3 . . . 1 . . . . Classes Destroyed 18 | 2 7 1 . . 1 3 1 . . 1 1 . . 1 Worker 12 | . 1 5 . . . . . 3 . 3 . . . . Builder 5 | . 2 1 . . . . . 1 . 1 . . . . Tunneler 10 | 5 . 2 . 1 . . . 1 . 1 . . . . Hauler 3 | . 1 . . . . . . . . 2 . . . . Recycler 10 | 1 1 3 . . . . . 1 . 4 . . . . Mechanic 1 | . 1 . . . . . . . . . . . . . Operator 2 | . 1 . . . . . . . . 1 . . . . Watcher 1 | . . . . . . 1 . . . . . . . . Swarmer 26 | . 1 2 . 4 . 7 2 3 . 4 3 . . . Grunt 16 | . 2 2 . . 2 . 1 . . 8 . 1 . . Duelist 1 | . . . . . . . 1 . . . . . . . Sentry 13 | . . . . . 1 8 1 . . 3 . . . . Demolisher 1 | . . 1 . . . . . . . . . . . . Hunter 2 | . . . . . . 1 . . . 1 . . . . Programmer 9 | . . . . . . . . . . 8 1 . . . Behemoth 1 | . . . . . . 1 . . . . . . . . Z-Light 3 | . . . . . . . . . . . . . . 3 Surgeon 1 | . . . . . . . . . . 1 . . . . Savage 1 | . . . . . . . . . . . 1 . . . Best Kill Streak 5 | 4 5 4 . 4 2 5 2 3 . 4 3 1 . 2 Combat Bots Only 5 | . 2 2 . 4 2 5 2 3 . 4 3 1 . 2 Max Kills in Single Turn 2 | 1 2 1 . 2 1 2 2 1 . 2 1 1 . 1 Gunslinging . | . . . . . . . . . . . . . . . Exploded 2 | . . . . 2 . 2 . . . 1 . . . . Melee 2 | . . . . . . . . . . 2 1 1 . 1 Uniques/NPCs Destroyed 1 | . . . . . . . . . . . . . . 1 Z-Imprinter (-7/Deep Caves) Combat | -11 -10 -10 -10 -9 -8 -8 -8 -7 -7 -7 -7 -7 -7 -7 -------- Run | Yrd Mat Min Exi Min Mat Gar Mat Fac Was Fac Low Low Zio Dee Hostile Shots Fired 691 | . 18 25 . 11 19 189 29 11 2 300 25 3 . 59 Missed 208 | . 7 4 . 2 6 47 6 2 . 113 9 . . 12 Hits 483 | . 11 21 . 9 13 142 23 9 2 187 16 3 . 47 Melee 3 | . . . . . . . . . 2 1 . . . . Projectile 480 | . 11 21 . 9 13 142 23 9 . 186 16 3 . 47 AOE 10 | . . 10 . . . . . . . . . . . . Critical Strikes 16 | . . . . 1 1 5 1 . 2 5 . 1 . . Part Disruptions 1 | . . . . . . . . . . . . . . 1 Damage Taken 8780 | . 123 546 . 102 196 2589 309 133 87 2169 235 60 . 2231 Core 1286 | . 24 124 . 36 47 319 33 11 . 228 27 20 . 417 Absorbed by Shields . | . . . . . . . . . . . . . . . Redirected to Shielding 29 | . . . . . . 13 12 4 . . . . . . Ignored by Resistances 19 | . . . . . . . . . . 19 . . . . Regen/Repaired (Parts) 1450 | . . . . . 30 . . 39 . 784 . . 597 . Core Remaining (%) 51 | 100 . . . 26 . . 27 . . . . . . . Volleys Fired 303 | 9 25 46 . 5 12 87 23 18 21 50 . . . 7 Largest 3 | 2 2 2 . 2 3 3 3 3 3 2 . . . 3 Hottest 207 | 70 76 100 . 76 116 193 207 170 168 150 . . . 39 Shots Fired 542 | 18 50 91 . 7 34 131 38 36 38 86 . . . 13 Gun 384 | 18 50 80 . 4 24 99 33 20 19 37 . . . . Cannon 130 | . . 11 . . 10 20 5 16 19 49 . . . . Launcher 18 | . . . . 3 . 12 . . . . . . . 3 Special 10 | . . . . . . . . . . . . . . 10 Kinetic 176 | 9 25 46 . 2 22 36 22 5 9 . . . . . Thermal 297 | 9 25 45 . 2 12 73 16 31 29 55 . . . . Explosive 28 | . . . . 3 . 12 . . . . . . . 13 Electromagnetic 41 | . . . . . . 10 . . . 31 . . . . Robot Hit Streak 20 | 2 6 7 . 2 8 20 8 10 8 9 . . . 6 Robot Miss Streak 6 | 2 5 3 . 1 2 6 5 2 2 5 . . . 1 Penetration Max . | . . . . . . . . . . . . . . . Secondary Targets 6 | . 2 . . . . 3 1 . . . . . . . Max Gunslinging Chain 1 | . 1 . . . . 1 1 . . . . . . . Shots Hit Robots 389 | 7 30 48 . 3 23 56 21 17 29 112 14 3 . 26 Core Hits 172 | 7 12 22 . 4 7 39 10 10 4 39 5 1 . 12 Critical Kills 1 | . . . . . . . . . . 1 . . . . Critical Parts Destroyed 2 | . . 1 . . 1 . . . . . . . . . Critical Strikes 24 | . 1 3 . 1 1 3 1 . . 5 4 1 . 4 Burn 8 | . 1 2 . 1 . 3 1 . . . . . . . Meltdown 1 | . . . . . . . . . . 1 . . . . Destroy 2 | . . 1 . . 1 . . . . . . . . . Sever 13 | . . . . . . . . . . 4 4 1 . 4 Melee Attacks 202 | . . . . . . 23 3 4 . 108 18 8 . 38 Impact 23 | . . . . . . 23 . . . . . . . . Slashing 172 | . . . . . . . . . . 108 18 8 . 38 Piercing 7 | . . . . . . . 3 4 . . . . . . Sneak Attacks 19 | . . . . . . . . . . 13 6 . . . Combat Hostiles . | . . . . . . . . . . . . . . . Follow-up Attacks 16 | . . . . . . . . . . 8 2 . . 6 Damage Inflicted 12052 | 91 472 760 . 247 431 1474 343 335 697 4431 854 173 . 1744 Guns 3525 | 91 472 615 . 28 241 806 292 175 320 485 . . . . Cannons 1950 | . . 145 . . 190 257 46 160 377 775 . . . . Explosions 1443 | . . . . 219 . 409 . . . 51 . . . 764 Melee 4766 | . . . . . . . . . . 3120 854 173 . 619 Ramming 7 | . . . . . . 2 5 . . . . . . . Kinetic 1517 | 53 197 331 . 11 295 222 194 24 190 . . . . . Thermal 3440 | 38 275 429 . 17 136 735 144 311 507 848 . . . . Explosive 1392 | . . . . 219 . 409 . . . . . . . 764 Electromagnetic 569 | . . . . . . 106 . . . 463 . . . . Impact . | . . . . . . . . . . . . . . . Slashing 5127 | . . . . . . . . . . 3120 854 173 . 980 Piercing . | . . . . . . . . . . . . . . . Highest Corruption 12 | . . . . . . . . . . 5 4 1 1 12 Average Corruption 4 | . . . . . . . . . . 3 3 1 1 12 Corruption Purged 13 | . . . . . . . . . . 9 4 . . . Corruption Blocked . | . . . . . . . . . . . . . . . Effects 60 | . . . . . . . . . . 35 5 . 2 18 Message Errors 18 | . . . . . . . . . . 8 1 . 1 8 Matter Fused 14 | . . . . . . . . . . 9 1 . . 4 Heat Flow Errors 4 | . . . . . . . . . . 2 1 . . 1 Energy Discharges 5 | . . . . . . . . . . 4 1 . . . Parts Fused 1 | . . . . . . . . . . . . . . 1 Data Loss (minor) 8 | . . . . . . . . . . 4 1 . 1 2 Data Loss (major) 5 | . . . . . . . . . . 4 . . . 1 Alerts 3 | . . . . . . . . . . 2 . . . 1 Weapon Failures 2 | . . . . . . . . . . 2 . . . . Overload Shots . | . . . . . . . . . . . . . . . Overflow Damage 540 | . . 6 . 13 3 . . 7 . 431 30 . . 50 Projectiles 18 | . . 6 . . 3 . . 7 . 2 . . . . Explosions 56 | . . . . 13 . . . . . . . . . 43 Melee 466 | . . . . . . . . . . 429 30 . . 7 Knockbacks 6 | . . 1 . . 2 . 3 . . . . . . . Impact . | . . . . . . . . . . . . . . . Kinetic 6 | . . 1 . . 2 . 3 . . . . . . . Secondary . | . . . . . . . . . . . . . . . Self-Inflicted Damage 34 | . . . . 32 . 2 . . . . . . . . Shots 2 | . . . . 1 . 1 . . . . . . . . Rammed 2 | . . . . . . 1 1 . . . . . . . Targets Rammed 2 | . . . . . . 1 1 . . . . . . . Kicked . | . . . . . . . . . . . . . . . Crushed . | . . . . . . . . . . . . . . . Highest Temperature 518 | 54 135 120 . 15 201 518 249 126 349 223 100 3 . 119 Average Temperature 77 | 22 46 40 . 10 90 102 126 49 142 52 50 3 . 30 Received Heat Transfer 2198 | . 60 75 . . 117 839 162 . . 531 . 45 . 369 Effects 3 | . . . . . . . 3 . . . . . . . Interference 3 | . . . . . . . 3 . . . . . . . Siege Activations . | . . . . . . . . . . . . . . . Martial Activations . | . . . . . . . . . . . . . . . Shielding Activations . | . . . . . . . . . . . . . . . Robots Disrupted . | . . . . . . . . . . . . . . . Combat Hostiles . | . . . . . . . . . . . . . . . Robots Corrupted . | . . . . . . . . . . . . . . . Combat Hostiles . | . . . . . . . . . . . . . . . Parts Fried . | . . . . . . . . . . . . . . . Impact Corruptions . | . . . . . . . . . . . . . . . Robots Melted 2 | . . . . . . 1 . . . 1 . . . . Combat Hostiles 1 | . . . . . . 1 . . . . . . . . Parts Melted 10 | . . 1 . . . 3 . 2 . 4 . . . . Heat Transferred 7384 | 111 703 1073 . 111 296 1896 500 683 888 1123 . . . . Parts Sabotaged . | . . . . . . . . . . . . . . . Parts Stolen . | . . . . . . . . . . . . . . . Parts Stripped . | . . . . . . . . . . . . . . . Power Chain Reactions 1 | . . . . . . . . . . 1 . . . . Alert | -11 -10 -10 -10 -9 -8 -8 -8 -7 -7 -7 -7 -7 -7 -7 ------- Run | Yrd Mat Min Exi Min Mat Gar Mat Fac Was Fac Low Low Zio Dee Maximum Alert Level 4 | . . . . . . 3 2 . . 4 . . . . Low Security (%) 53 | 100 100 100 . 100 100 34 . 100 100 26 . . . . Level 1 16 | . . . . . . 12 90 . . 22 . . . . Level 2 11 | . . . . . . 36 9 . . 6 . . . . Level 3 7 | . . . . . . 16 . . . 9 . . . . Level 4 11 | . . . . . . . . . . 34 . . . . Level 5 . | . . . . . . . . . . . . . . . High Security . | . . . . . . . . . . . . . . . Max Security . | . . . . . . . . . . . . . . . Peak Influence 1526 | 10 40 55 . 107 35 1029 501 109 23 1526 . . . . Initial 501 | . . 9 . . 16 . 501 109 23 . . . . . Average 333 | 3 6 13 . 71 6 400 291 54 1 632 . . . . Influence Increases 4482 | 30 114 219 . 112 116 1229 162 157 24 2129 100 90 . . Destroy 0b10 Robot/C 1780 | . 60 100 . 80 60 420 100 60 . 800 80 20 . . Destroy 0b10 Robot/NC 235 | 30 35 55 . 5 . 5 . 30 . 75 . . . . Destroy Leader 366 | . 12 20 . 10 10 20 30 10 . 224 20 10 . . Allied During Kill 306 | . . . . . . 13 . . . 293 . . . . Successful Hack 108 | . 7 . . . 11 21 14 24 . 31 . . . . Select Force Hacks 90 | . . . . . 30 . . . . 60 . . . . Disable Machine 195 | . . 15 . . . 15 . 30 . 135 . . . . Anti-Garrison Action 750 | . . . . . . 550 . . . 200 . . . . Destroy Structure 337 | . . 14 . 17 5 170 3 3 24 101 . . . . Partial Spotted 45 | . . . . . . . . . . 45 . . . . Lose Combat Pursuer 270 | . . 15 . . . 15 15 . . 165 . 60 . . Influence Decreases 4482 | 30 88 245 . 70 158 200 950 330 92 605 779 529 406 . Entered New Map 1880 | . . 17 . . 26 . 528 132 45 . 565 161 406 . Time Decay 2084 | 30 88 217 . 70 122 . 262 198 30 485 214 368 . . Lost Part 252 | . . 11 . . 10 160 10 . 1 60 . . . . Lost Ally 116 | . . . . . . 40 . . 16 60 . . . . Purge Threat 150 | . . . . . . . 150 . . . . . . . Squads Dispatched 25 | . 4 . . . 2 . . . . 19 . . . . Investigation 14 | . 3 . . . 2 . . . . 9 . . . . Extermination 8 | . . . . . . . . . . 8 . . . . Reinforcement 3 | . 1 . . . . . . . . 2 . . . . Assault . | . . . . . . . . . . . . . . . Garrison . | . . . . . . . . . . . . . . . Intercept . | . . . . . . . . . . . . . . . Searches Triggered . | . . . . . . . . . . . . . . . Construction Impeded . | . . . . . . . . . . . . . . . Haulers Reinforced 1 | . . . . . . . . . . 1 . . . . Active Scanning Responses . | . . . . . . . . . . . . . . . Cargo Convoy Interrupts . | . . . . . . . . . . . . . . . Stealth | -11 -10 -10 -10 -9 -8 -8 -8 -7 -7 -7 -7 -7 -7 -7 --------- Run | Yrd Mat Min Exi Min Mat Gar Mat Fac Was Fac Low Low Zio Dee Distress Signals 11 | . 1 . . . . 4 3 . . 3 . . . . Communications Jammed . | . . . . . . . . . . . . . . . Distress Signals . | . . . . . . . . . . . . . . . Times Spotted 158 | . 9 7 . 4 11 33 8 3 10 53 4 5 . 11 Peak Tracking Total 7 | . 4 2 . 4 3 7 4 3 4 5 3 3 . 5 Tactical Retreats 14 | . . 1 . . . 1 1 . 2 7 . 2 . . Traps | -11 -10 -10 -10 -9 -8 -8 -8 -7 -7 -7 -7 -7 -7 -7 ------- Run | Yrd Mat Min Exi Min Mat Gar Mat Fac Was Fac Low Low Zio Dee Traps Triggered 11 | . . . . . . 4 . 4 . 3 . . . . Indirectly . | . . . . . . . . . . . . . . . Trap Hack Attempts . | . . . . . . . . . . . . . . . Triggered . | . . . . . . . . . . . . . . . Disarmed . | . . . . . . . . . . . . . . . Reprogrammed . | . . . . . . . . . . . . . . . Reused . | . . . . . . . . . . . . . . . Traps Extracted 4 | . . . . . . . . . . . . 4 . . Installed . | . . . . . . . . . . . . . . . Triggered . | . . . . . . . . . . . . . . . Most Traps Carried 4 | . . . . . . . . . . . . 4 4 4 Machines | -11 -10 -10 -10 -9 -8 -8 -8 -7 -7 -7 -7 -7 -7 -7 ---------- Run | Yrd Mat Min Exi Min Mat Gar Mat Fac Was Fac Low Low Zio Dee Machines Disabled 20 | . 1 1 . . . 6 . 2 . 9 . . . 1 Max in Single Turn 1 | . 1 1 . . . 1 . 1 . 1 . . . . Garrison Access 1 | . . . . . . . . . . 1 . . . . Garrison Relay 5 | . . . . . . 5 . . . . . . . . Machines Repaired . | . . . . . . . . . . . . . . . Machines Dismantled . | . . . . . . . . . . . . . . . Machines Sabotaged . | . . . . . . . . . . . . . . . Overloaded Fab Kills . | . . . . . . . . . . . . . . . Hacking | -11 -10 -10 -10 -9 -8 -8 -8 -7 -7 -7 -7 -7 -7 -7 --------- Run | Yrd Mat Min Exi Min Mat Gar Mat Fac Was Fac Low Low Zio Dee Machines Accessed 38 | . 6 . 2 . 7 2 1 1 . 18 1 . . . Terminals 21 | . 6 . . . 4 2 1 . . 8 . . . . Fabricators 5 | . . . . . . . . . . 5 . . . . Repair Stations 3 | . . . . . 1 . . 1 . 1 . . . . Recycling Units 3 | . . . . . 1 . . . . 2 . . . . Scanalyzers 1 | . . . . . . . . . . 1 . . . . Garrison Access 2 | . . . . . 1 . . . . 1 . . . . Total Hacks 88 | . 15 . 6 . 16 4 2 2 . 42 1 . . . Successful 42 | . 5 . 6 . 10 2 2 2 . 14 1 . . . Failed 46 | . 10 . . . 6 2 . . . 28 . . . . Catastrophic 10 | . 5 . . . . . . . . 5 . . . . Database Lockouts . | . . . . . . . . . . . . . . . Manual 59 | . 11 . 1 . 12 . 1 . . 27 . . 7 . Terminals 51 | . 15 . . . 11 4 2 . . 19 . . . . Fabricators 10 | . . . . . . . . . . 10 . . . . Repair Stations 6 | . . . . . 1 . . 2 . 3 . . . . Recycling Units 8 | . . . . . 2 . . . . 6 . . . . Scanalyzers 3 | . . . . . . . . . . 3 . . . . Garrison Access 3 | . . . . . 2 . . . . 1 . . . . Terminal Hacks 18 | . 3 . 6 . 3 2 1 . . 2 1 . . . Record 5 | . . . 5 . . . . . . . . . . . Prototype ID Bank 2 | . 1 . . . . . . . . 1 . . . . Open Door 2 | . . . . . . 1 . . . . 1 . . . Branch Access Points 2 | . . . . . 1 . . . . 1 . . . . Emergency Access Points 1 | . . . . . . 1 . . . . . . . . Alert Level 1 | . . . . . 1 . . . . . . . . . Unreport Threat 1 | . . . . . . . 1 . . . . . . . Locate Traps 2 | . 1 . . . 1 . . . . . . . . . Registered Components 1 | . 1 . . . . . . . . . . . . . Proto ID Catalog 1 | . . . 1 . . . . . . . . . . . Fabricator Hacks . | . . . . . . . . . . . . . . . Repair Station Hacks 4 | . . . . . . . . 2 . 2 . . . . Scan Component 2 | . . . . . . . . 1 . 1 . . . . Repair 2 | . . . . . . . . 1 . 1 . . . . Recycling Unit Hacks 2 | . . . . . . . . . . 2 . . . . Retrieve Components 2 | . . . . . . . . . . 2 . . . . Scanalyzer 2 | . . . . . . . . . . 2 . . . . Insert Component 1 | . . . . . . . . . . 1 . . . . Analyze 1 | . . . . . . . . . . 1 . . . . Garrison Access Hacks 1 | . . . . . 1 . . . . . . . . . Unlock Access 1 | . . . . . 1 . . . . . . . . . Unauthorized Hacks 15 | . 2 . . . 6 . 1 . . 6 . . . . Terminals 8 | . 2 . . . 4 . 1 . . 1 . . . . Track 1 | . . . . . 1 . . . . . . . . . Assimilate 1 | . 1 . . . . . . . . . . . . . Botnet 4 | . . . . . 2 . 1 . . 1 . . . . Disrupt 1 | . . . . . 1 . . . . . . . . . Sabotage 1 | . 1 . . . . . . . . . . . . . Fabricators 1 | . . . . . . . . . . 1 . . . . Fabnet 1 | . . . . . . . . . . 1 . . . . Repair Stations 2 | . . . . . 1 . . . . 1 . . . . Patch 2 | . . . . . 1 . . . . 1 . . . . Recycling Units 3 | . . . . . 1 . . . . 2 . . . . Tunnel 3 | . . . . . 1 . . . . 2 . . . . Scanalyzers . | . . . . . . . . . . . . . . . Garrison Access 1 | . . . . . . . . . . 1 . . . . Jam 1 | . . . . . . . . . . 1 . . . . Data Cores Recovered 1 | . . . . . . . . . . 1 . . . . Used 1 | . . . . . . . . . . 1 . . . . Hacking Detections 29 | . 6 . . . 5 1 1 1 . 15 . . . . Full Trace Events 8 | . 3 . . . . . . . . 5 . . . . Feedback Events 1 | . . . . . . . . . . 1 . . . . Corruption 1 | . . . . . . . . . . 1 . . . . Feedback Blocked . | . . . . . . . . . . . . . . . Robot Schematics Acquired . | . . . . . . . . . . . . . . . Robots Built . | . . . . . . . . . . . . . . . Authchips . | . . . . . . . . . . . . . . . Time . | . . . . . . . . . . . . . . . Total Robot Build Rating . | . . . . . . . . . . . . . . . Part Schematics Acquired 1 | . . . . . . . . . . 1 . . . . Parts Built . | . . . . . . . . . . . . . . . Authchips . | . . . . . . . . . . . . . . . Time . | . . . . . . . . . . . . . . . Total Part Build Rating . | . . . . . . . . . . . . . . . Parts Repaired 2 | . . . . . . . . 1 . 1 . . . . Time 57 | . . . . . . . . 13 . 44 . . . . Parts Recycled . | . . . . . . . . . . . . . . . Recycled Matter . | . . . . . . . . . . . . . . . Retrieved Matter . | . . . . . . . . . . . . . . . Retrieved Components 11 | . . . . . . . . . . 11 . . . . Parts Scanalyzed 1 | . . . . . . . . . . 1 . . . . Part Schematics Acquired 1 | . . . . . . . . . . 1 . . . . Parts Damaged . | . . . . . . . . . . . . . . . Bothacking | -11 -10 -10 -10 -9 -8 -8 -8 -7 -7 -7 -7 -7 -7 -7 ------------ Run | Yrd Mat Min Exi Min Mat Gar Mat Fac Was Fac Low Low Zio Dee Used RIF Installer . | . . . . . . . . . . . . . . . Robots Hacked . | . . . . . . . . . . . . . . . Non-combat . | . . . . . . . . . . . . . . . Combat . | . . . . . . . . . . . . . . . Robot Hacks Applied . | . . . . . . . . . . . . . . . Relay Couplers Released 21 | . . . . . . 21 . . . . . . . . Machine Destruction 21 | . . . . . . 21 . . . . . . . . Fabnet Peak Effective % . | . . . . . . . . . . . . . . . Robots Rewired 2 | . . . . . . 2 . . . . . . . . Allies Hacked . | . . . . . . . . . . . . . . . Hacks Repelled . | . . . . . . . . . . . . . . . Allies | -11 -10 -10 -10 -9 -8 -8 -8 -7 -7 -7 -7 -7 -7 -7 -------- Run | Yrd Mat Min Exi Min Mat Gar Mat Fac Was Fac Low Low Zio Dee Total Allies 24 | . . . . . . 2 . . 20 . . . 2 . Largest Group 19 | . . . . . . 2 . . 19 11 . . 2 2 Highest-Rated Group 475 | . . . . . . 56 . . 475 331 . . 192 192 Highest-Rated Ally 96 | . . . . . . 31 . . 35 35 . . 96 96 Initial Warlord ECA Mod 65 | . . . . . . . 9 8 8 8 8 8 8 8 Total Orders . | . . . . . . . . . . . . . . . Ally Attacks 269 | . . . . . . 18 . . 96 102 . . . 53 Total Damage 7723 | . . . . . . 314 . . 3769 2062 . . . 1578 Kills 41 | . . . . . . 4 . . 9 19 . . . 9 Allies Corrupted 2 | . . . . . . . . . . 2 . . . . Allies Melted . | . . . . . . . . . . . . . . . Intel | -11 -10 -10 -10 -9 -8 -8 -8 -7 -7 -7 -7 -7 -7 -7 ------- Run | Yrd Mat Min Exi Min Mat Gar Mat Fac Was Fac Low Low Zio Dee Active Infowar (turns) 7047 | 8 422 962 440 126 537 149 446 409 578 2945 25 . . . Structural 6528 | . . 904 440 95 537 149 446 409 578 2945 25 . . . Seismic 519 | 8 422 58 . 31 . . . . . . . . . . Robot Analysis Total . | . . . . . . . . . . . . . . . Derelict Logs Recovered 4 | . . 1 . . . . . . . . . 2 1 . Drone Launches . | . . . . . . . . . . . . . . . Drone Recoveries . | . . . . . . . . . . . . . . . Exploration | -11 -10 -10 -10 -9 -8 -8 -8 -7 -7 -7 -7 -7 -7 -7 ------------- Run | Yrd Mat Min Exi Min Mat Gar Mat Fac Was Fac Low Low Zio Dee Turns Passed 14116 | 96 422 964 440 158 537 2166 565 409 578 2948 452 840 1849 1692 Spaces Moved 8708 | 62 259 709 389 124 384 899 242 254 528 1771 288 538 1350 911 Core 19 | 19 . . . . . . . . . . . . . . Treads 30 | . . . . . . 25 5 . . . . . . . Legs 4997 | . . . . . . . . . 139 1771 288 538 1350 911 Wheels 3317 | 43 259 709 389 124 384 874 237 254 44 . . . . . Hover . | . . . . . . . . . . . . . . . Flight 345 | . . . . . . . . . 345 . . . . . Fastest Speed 50 | 50 100 110 110 110 110 125 170 95 50 126 126 126 126 126 Average Speed 131 | 84 105 110 110 110 114 178 185 112 86 128 126 126 127 162 Slowest Speed 250 | 100 110 110 110 110 170 240 240 185 250 220 126 190 209 220 Overloaded Moves . | . . . . . . . . . . . . . . . Propulsion Burnouts . | . . . . . . . . . . . . . . . Robots Hopped . | . . . . . . . . . . . . . . . Potential Cave-ins . | . . . . . . . . . . . . . . . Cave-ins Triggered 1 | . . . . . . . . . . . . . . 1 Exploration Rate (%) 54 | 4 46 98 77 16 37 88 28 8 95 50 48 62 89 72 Regions Visited 14 Branch Regions 7 Pre-discovered Areas 7 | . . 1 1 . 1 . . . . 2 1 . 1 . Known Exits Taken 2 | . . . . . 1 . . . . 1 . . . . Unknown Exits Taken 9 | 1 1 1 1 1 . . 1 . . . 1 1 1 . Scrap Searched 9 | . . 1 . . . . . . . . 3 1 4 . Spaces Dug 65 | . . . . 6 . 19 3 1 . 25 . 3 . 8 Terrain Destroyed 207 | . . 14 . 18 4 59 3 3 2 36 . 3 . 65 Melee 49 | . . . . . . 9 3 1 . 25 . 3 . 8 Projectile 18 | . . 2 . . 4 . . 2 2 8 . . . . AOE 140 | . . 12 . 18 . 50 . . . 3 . . . 57 Terrain Rammed . | . . . . . . . . . . . . . . . Walls Destroyed . | . . . . . . . . . . . . . . . Machines Disabled . | . . . . . . . . . . . . . . . Actions | -11 -10 -10 -10 -9 -8 -8 -8 -7 -7 -7 -7 -7 -7 -7 --------- Run | Yrd Mat Min Exi Min Mat Gar Mat Fac Was Fac Low Low Zio Dee Total 10636 | 83 357 805 405 140 454 1302 321 342 627 2202 352 686 1487 1073 Wait 832 | 1 39 24 . 2 26 163 16 28 36 193 21 136 98 49 Move 8694 | 61 258 708 388 123 384 896 241 254 527 1770 287 537 1349 911 Hop . | . . . . . . . . . . . . . . . Pick Up 150 | 3 21 10 3 1 7 24 6 7 12 28 6 2 9 11 Fast Attach 100 | 8 1 1 . 2 9 11 3 11 6 16 4 2 7 19 Attach 46 | . . 2 . . 2 12 1 1 5 9 3 . . 11 Detach 15 | . 1 . . . 3 2 . . 4 2 1 . . 2 Swap 92 | . 6 5 3 3 3 20 15 6 1 6 6 1 7 10 Drop 190 | 1 6 9 11 4 8 20 12 13 15 36 9 2 17 27 Fire 303 | 9 25 46 . 5 12 87 23 18 21 50 . . . 7 Melee 168 | . . . . . . 23 3 4 . 91 15 6 . 26 Ram . | . . . . . . . . . . . . . . . Kick . | . . . . . . . . . . . . . . . Crush 2 | . . . . . . 1 1 . . . . . . . Escape Stasis 27 | . . . . . . 27 . . . . . . . . Rewire 17 | . . . . . . 16 . . . 1 . . . . Trap . | . . . . . . . . . . . . . . . Miscellaneous . | . . . . . . . . . . . . . . . Route ------- -11/Scrapyard -10/Materials (discovered 2 exits: [*Mat] / [*Min]) -10/Mines (discovered 3 exits: [*Mat x2] / *Exi) -10/Exiles -9/Mines -8/Materials (discovered 2 exits: *Fac / Gar) -8/Garrison (discovered 3 exits: *Mat x3) -8/Materials -7/Factory -7/Waste -7/Factory (discovered 5 exits: *Fac x2 / Sto / *Low x2) -7/Lower Caves -7/Lower Caves -7/Zion (discovered 2 exits: [*Dee] / [*Pro]) -7/Deep Caves (discovered 1 exit: [*Pro]) History --------- Turn | Location | Event 2 | -11/Scrapyard | Met Revision 17 5 | -11/Scrapyard | Discovered new exit (range 16) 97 | -11/Scrapyard | Entered Materials 182 | -10/Materials | Discovered new exit (range 9) 301 | -10/Materials | Build established: Mutant 401 | -10/Materials | Discovered new exit (range 14) 519 | -10/Materials | Entered Mines 520 | -10/Mines | Assembled infested the area 525 | -10/Mines | Assisted by a Guerilla fighting off Assembled 590 | -10/Mines | A weapon hastily lodged in a ceiling crevice suddenly fell to the ground 628 | -10/Mines | Deemed a non-threat by the Exiles lab entrance 628 | -10/Mines | Discovered new exit (range 6) 699 | -10/Mines | Learned location of Zion (-7) 702 | -10/Mines | Discovered new exit (range 8) 773 | -10/Mines | Core integrity fell below 50% 1108 | -10/Mines | Discovered new exit (range 6) 1123 | -10/Mines | Build established: Scavenger-Mutant 1483 | -10/Mines | Entered Exiles 1511 | -10/Exiles | Met 8R-AWN 1531 | -10/Exiles | Met EX-HEX 1562 | -10/Exiles | Met EX-BIN 1578 | -10/Exiles | Aligned with FarCom system 1579 | -10/Exiles | Given EX-Vault access code 1606 | -10/Exiles | Opened EX-Vault 1613 | -10/Exiles | Found Trap Reconfigurator 1622 | -10/Exiles | Found Army-in-a-Box 1628 | -10/Exiles | Found Flying Fortress v7 1649 | -10/Exiles | Warned to stay clear of 0b10 Research branches 1683 | -10/Exiles | Met EX-DEC 1794 | -10/Exiles | Visited The Gauntlet 1910 | -10/Exiles | Discovered new exit (range 14) 1923 | -10/Exiles | Stole three prototypes: Flying Fortress v7, Trap Reconfigurator, Army-in-a-Box 1923 | -10/Exiles | Entered Mines 2069 | -9/Mines | Discovered new exit (range 12) 2081 | -9/Mines | Entered Materials 2081 | -8/Materials | Evolved 4 slots: Utility x3, Weapon x1 2496 | -8/Materials | Discovered new exit (range 4) 2617 | -8/Materials | Build established: Skirmisher 2618 | -8/Materials | Identified exit to Garrison 2618 | -8/Materials | Entered Garrison 2764 | -8/Garrison | Spotted B-75 Beast 2907 | -8/Garrison | Core integrity fell below 50% 2914 | -8/Garrison | Destroyed B-75 Beast 2949 | -8/Garrison | Lost 15 parts (1p3n6u5w) 3310 | -8/Garrison | Build established: Scavenger-Tank 3325 | -8/Garrison | Triggered checkpoint 3365 | -8/Garrison | Garrison Relay disabled 3458 | -8/Garrison | Triggered checkpoint 3885 | -8/Garrison | Discovered new exit (range 10) 3904 | -8/Garrison | Attempted to access garrison exit controls, blocked by remote lockdown 4088 | -8/Garrison | Triggered checkpoint 4113 | -8/Garrison | Triggered checkpoint 4264 | -8/Garrison | Triggered checkpoint 4287 | -8/Garrison | Garrison Relay disabled 4294 | -8/Garrison | Garrison Relay disabled 4333 | -8/Garrison | Discovered new exit (range 13) 4425 | -8/Garrison | Attempted to access garrison exit controls, blocked by remote lockdown 4465 | -8/Garrison | Build established: Scavenger-Mutant 4496 | -8/Garrison | Garrison Relay disabled 4680 | -8/Garrison | Garrison Relay disabled 4732 | -8/Garrison | Discovered new exit (range 12) 4784 | -8/Garrison | Entered Materials 5314 | -8/Materials | Discovered new exit (range 16) 5349 | -8/Materials | Entered Factory 5349 | -7/Factory | Evolved 2 slots: Propulsion x2 5351 | -7/Factory | FarCom data flow suspended 5528 | -7/Factory | Repaired Wheel 5647 | -7/Factory | Build established: Scavenger-Tank 5711 | -7/Factory | Discovered new exit (range 11) 5758 | -7/Factory | Sucked down chute 5758 | -7/Factory | Entered Waste 5759 | -7/Waste | Met a frightened Derelict 5804 | -7/Waste | Spotted C-40 Crusher 5820 | -7/Waste | Spotted C-40 Crusher 5828 | -7/Waste | Crushed by Compactor (1 part destroyed, 2 dropped) 5831 | -7/Waste | Crushed by Compactor (1 part destroyed, 2 dropped) 5832 | -7/Waste | Allies destroyed C-40 Crusher 5846 | -7/Waste | Spotted C-40 Crusher 5850 | -7/Waste | Spotted C-40 Crusher 5856 | -7/Waste | Spotted C-40 Crusher 5862 | -7/Waste | Lost 3 parts (1n1u1w) 5875 | -7/Waste | Warlord forces began an assault 5926 | -7/Waste | Spotted C-40 Crusher 5942 | -7/Waste | Allies destroyed C-40 Crusher 5944 | -7/Waste | Allies destroyed C-40 Crusher 5953 | -7/Waste | Allies destroyed C-40 Crusher 5960 | -7/Waste | Allies destroyed C-40 Crusher 5968 | -7/Waste | Discovered new exit (range 11) 5994 | -7/Waste | Lost 8 allies 6133 | -7/Waste | Build established: Mutant 6300 | -7/Waste | Identified exit to Factory 6336 | -7/Waste | Entered Factory 6336 | -7/Factory | Accompanied by 11 allies 7304 | -7/Factory | Discovered new exit (range 9) 7313 | -7/Factory | Identified exit to Factory 7380 | -7/Factory | Lost 3 allies 8186 | -7/Factory | Discovered exit to Factory (range 8) 8280 | -7/Factory | P-60 Hacker assimilated allied MN-2PM(m) 8649 | -7/Factory | Identified exit to Storage 8649 | -7/Factory | Identified exit to Lower Caves 8652 | -7/Factory | Build established: Gladiator 8736 | -7/Factory | Repaired Lgt. Armored Exoskeleton 9284 | -7/Factory | Entered Lower Caves 9294 | -7/Lower Caves | Met a Warlord Commander 9295 | -7/Lower Caves | Learned location of Warlord (-4) 9296 | -7/Lower Caves | Warlord Commander delivered Encrypted Comm Array 9297 | -7/Lower Caves | Found Encrypted Comm Array 9667 | -7/Lower Caves | Discovered new exit (range 11) 9736 | -7/Lower Caves | Entered another Lower Caves area 10144 | -7/Lower Caves | Encountered a Warlord checkpoint 10312 | -7/Lower Caves | Learned Factory trap positions 10415 | -7/Lower Caves | Discovered new exit (range 14) 10576 | -7/Lower Caves | Entered Zion 10672 | -7/Zion | Discovered new exit (range 14) 10789 | -7/Zion | System corruption cleaned by Quarantine Array 10913 | -7/Zion | Acquired unknown access codes intercepted by a Zionite 11143 | -7/Zion | Found GAL Module 11219 | -7/Zion | Found Prototype Special Weapon 11219 | -7/Zion | Identified RU-N14's Throwing Claymores 11223 | -7/Zion | Found RU-N14's Throwing Claymores 11226 | -7/Zion | Found RU-N14's Throwing Claymores 11230 | -7/Zion | Found RU-N14's Throwing Claymores 11477 | -7/Zion | Received a visual enhancement algorithm 11480 | -7/Zion | Ran a visual enhancement algorithm 11549 | -7/Zion | Ran a visual enhancement algorithm 12030 | -7/Zion | Visited the Megawrench Repair Shop 12036 | -7/Zion | Megawrench repaired 8 parts 12071 | -7/Zion | Met Imprinter 12165 | -7/Zion | Given A8's code to call for help 12371 | -7/Zion | Enhanced Grunt warped into view, answering call for help 12372 | -7/Zion | Opened final containment barrier to the Deep Caves 12373 | -7/Zion | Enhanced Grunt warped into view, answering call for help 12393 | -7/Zion | Discovered new exit (range 3) 12393 | -7/Zion | Saw the warning signs outside the Deep Caves entrance 12425 | -7/Zion | Entered Deep Caves 12425 | -7/Deep Caves | Accompanied by 2 allies 12654 | -7/Deep Caves | Attacked by Z-Imprinter 12678 | -7/Deep Caves | Destroyed Z-Imprinter 12689 | -7/Deep Caves | Z-Facility disabled 12841 | -7/Deep Caves | Found Prototype Protection 12841 | -7/Deep Caves | Identified Zio. Weapon Casing 12847 | -7/Deep Caves | Found Prototype Device 12847 | -7/Deep Caves | Identified Zio. Metafield Generator 13014 | -7/Deep Caves | Core integrity fell below 50% 13048 | -7/Deep Caves | Found Zio. Weapon Casing 13339 | -7/Deep Caves | Discovered new exit (range 11) 13654 | -7/Deep Caves | Crushed by falling debris 13654 | -7/Deep Caves | System corruption reached 10% 13685 | -7/Deep Caves | Lost 3 parts (1p1n1w) 13945 | -7/Deep Caves | Build established: Mutant 14096 | -7/Deep Caves | Spotted AG-74340 14114 | -7/Deep Caves | Core integrity fell below 20% 14117 | -7/Deep Caves | Destroyed by AG-74340 with Assembled Focal Cannon Last Messages --------------- 13890_ System corrupted: Matter fused (-7). 13914_ M QYVJLHILS MNTKSZBNLJARO 13949_ System corrupted: Component data lost. 13968_ ,QNLC/GEJ Q OGNNYBCDXNB4GLIV8U 13987_ System corrupted: Matter fused (-8). 14013_ System corrupted: Component data lost. 14036_ System corrupted: Substantial component data lost. 14057_ H ,#J J:X U4LXYM,HY:XXKEMI 14091_ R7BS